[Event "57th Biel Festival ATO 2024"]
[Site "Biel"]
[Date "2024.07.23"]
[Round "7.23"]
[White "Harte, Bernd"]
[Black "Mohr, Jan"]
[Result "0-1"]
[ECO "A00"]
[WhiteElo "1592"]
[BlackElo "1824"]
[Annotator "NA RC"]
[PlyCount "66"]
[EventDate "2024.07.03"]
[EventType "swiss"]
[EventCountry "SUI"]
[SourceTitle "playchess.com"]
[Source "ChessBase"]
[SourceQuality "1"]
[TimeControl "40/5400+30:1800+30"]

1. g4 {[%emt 0:00:02]} d5 {[%emt 0:00:09]} 2. Bg2 {[%emt 0:00:07]} Bxg4 {[%emt 0:00:18]} 3. c4 {[%emt 0:00:14]} c6 {[%emt 0:00:04]} 4. Qb3 {[%emt 0:00:43]} Nf6 {[%emt 0:00:27]} 5. Qxb7 {[%emt 0:01:22]} Nbd7 {[%emt 0:00:15]} 6. cxd5 {[%emt 0:00:43]} cxd5 {[%emt 0:02:11]} 7. Nc3 {[%emt 0:00:35]} e6 {[%emt 0:04:33]} 8. d4 {[%emt 0:02:21]} Rb8 {[%emt 0:08:34]} 9. Qxa7 {[%emt 0:01:11]} Bb4 {[%emt 0:14:04]} 10. Bd2 {[%emt 0:05:04]} Ra8 {[%emt 0:00:55]} 11. Qb7 {[%emt 0:00:24]} Qa5 {[%emt 0:00:43]} 12. Qc6 {[%emt 0:04:43]} O-O {[%emt 0:01:05]} 13. Qb5 {[%emt 0:01:09]} Bxc3 {[%emt 0:00:28]} 14. Qxa5 {[%emt 0:01:24]} Bxa5 {[%emt 0:00:03]} 15. Bxa5 {[%emt 0:00:18]} Rxa5 {[%emt 0:00:01]} 16. b4 {[%emt 0:00:42]} Ra4 {[%emt 0:00:09]} 17. f3 {[%emt 0:02:59]} Bf5 {[%emt 0:00:10]} 18. b5 {[%emt 0:01:33]} Rb8 {[%emt 0:00:02]} 19. e4 {[%emt 0:00:13]} dxe4 {[%emt 0:00:05]} 20. Bf1 {[%emt 0:00:31]} Nd5 {[%emt 0:00:45]} 21. a3 {[%emt 0:07:56]} exf3 {[%emt 0:00:12]} 22. Nxf3 {[%emt 0:00:18]} Be4 {[%emt 0:00:07]} 23. Kf2 {[%emt 0:00:33]} Rba8 {[%emt 0:00:34]} 24. Be2 {[%emt 0:03:25]} Rxa3 {[%emt 0:00:15]} 25. Rxa3 {[%emt 0:00:13]} Rxa3 {[%emt 0:00:03]} 26. Rc1 {[%emt 0:00:25]} Rc3 {[%emt 0:01:07]} 27. Rxc3 {[%emt 0:01:24]} Nxc3 {[%emt 0:00:10]} 28. Ne5 {[%emt 0:00:22]} Nxe5 {[%emt 0:00:15]} 29. dxe5 {[%emt 0:00:23]} Nd5 {[%emt 0:00:24]} 30. h4 {[%emt 0:02:23]} Kf8 {[%emt 0:00:15]} 31. Bd1 {[%emt 0:00:44]} Nc3 {[%emt 0:00:23]} 32. Ke3 {[%emt 0:00:37]} Nxd1+ {[%emt 0:00:17]} 33. Kxe4 {[%emt 0:00:12]} Nc3+ {[%emt 0:00:04]} 0-1

[Event "57th Biel Festival ATO 2024"]
[Site "Biel"]
[Date "2024.07.23"]
[Round "7.24"]
[White "Primbetova, Raikhan"]
[Black "Galopin, Clement"]
[Result "0-1"]
[ECO "E35"]
[WhiteElo "1534"]
[BlackElo "1816"]
[Annotator "NA RC"]
[PlyCount "125"]
[EventDate "2024.07.03"]
[EventType "swiss"]
[EventCountry "SUI"]
[SourceTitle "playchess.com"]
[Source "ChessBase"]
[SourceQuality "1"]
[TimeControl "40/5400+30:1800+30"]

1. c4 {[%emt 0:00:03]} Nf6 {[%emt 0:13:38]} 2. Nc3 {[%emt 0:00:03]} e6 {[%emt 0:00:04]} 3. d4 {[%emt 0:00:03]} Bb4 {[%emt 0:00:05]} 4. Qc2 {[%emt 0:10:29]} d5 {[%emt 0:00:05]} 5. cxd5 {[%emt 0:00:39]} exd5 {[%emt 0:00:05]} 6. Bg5 {[%emt 0:01:48]} h6 {[%emt 0:00:07]} 7. Bh4 {[%emt 0:00:18]} O-O {[%emt 0:03:32]} 8. e3 {[%emt 0:03:37]} g5 {[%emt 0:07:29]} 9. Bg3 {[%emt 0:00:11]} Ne4 {[%emt 0:00:26]} 10. Bd3 {[%emt 0:03:59]} Bxc3+ {[%emt 0:00:54]} 11. bxc3 {[%emt 0:00:09]} Nxg3 {[%emt 0:00:26]} 12. hxg3 {[%emt 0:00:07]} Kg7 {[%emt 0:00:16]} 13. Nf3 {[%emt 0:03:27]} Be6 {[%emt 0:03:05]} 14. Kf1 {[%emt 0:30:33]} c5 {[%emt 0:03:24]} 15. Qd2 {[%emt 0:06:11]} Nc6 {[%emt 0:07:21]} 16. Kg1 {[%emt 0:02:22]} Rc8 {[%emt 0:04:22]} 17. Rc1 {[%emt 0:02:10]} Qa5 {[%emt 0:04:01]} 18. Kh2 {[%emt 0:05:06]} g4 {[%emt 0:08:39]} 19. Ne5 {[%emt 0:08:09]} Nxe5 {[%emt 0:00:07]} 20. dxe5 {[%emt 0:00:03]} Qc7 {[%emt 0:00:50]} 21. Qb2 {[%emt 0:03:09]} c4 {[%emt 0:01:42]} 22. Bb1 {[%emt 0:01:31]} a6 {[%emt 0:03:17]} 23. a4 {[%emt 0:03:41]} Rb8 {[%emt 0:04:29]} 24. Qc2 {[%emt 0:02:15]} Rh8 {[%emt 0:00:23]} 25. e4 {[%emt 0:02:16]} Qxe5 {[%emt 0:00:47]} 26. Rhe1 {[%emt 0:00:57]} Qh5+ {[%emt 0:07:23]} 27. Kg1 {[%emt 0:00:06]} Qg6 {[%emt 0:00:12]} 28. Qd2 {[%emt 0:02:39]} dxe4 {[%emt 0:01:24]} 29. Bxe4 {[%emt 0:00:34]} Qf6 {[%emt 0:00:48]} 30. a5 {[%emt 0:02:34]} Rhd8 {[%emt 0:03:54]} 31. Qe2 {[%emt 0:02:59]} Qg5 {[%emt 0:02:18]} 32. Ra1 {[%emt 0:00:49]} Rd2 {[%emt 0:06:31]} 33. Qe3 {[%emt 0:00:27]} Qxe3 {[%emt 0:00:31]} 34. Rxe3 {[%emt 0:00:05]} Rb2 {[%emt 0:04:43]} 35. Ree1 {[%emt 0:03:23]} Rd8 {[%emt 0:00:22]} 36. Reb1 {[%emt 0:00:41]} Rdd2 {[%emt 0:00:14]} 37. Bxb7 {[%emt 0:00:53]} Rxf2 {[%emt 0:01:58]} 38. Rxb2 {[%emt 0:00:25]} Rxb2 {[%emt 0:00:03]} 39. Be4 {[%emt 0:00:38]} Kf6 {[%emt 0:03:18]} 40. Kf1 {[%emt 0:00:29]} Ke5 {[%emt 0:02:21]} 41. Bc6 {[%emt 0:17:40]} Kd6 {[%emt 0:01:35]} 42. Be8 {[%emt 0:01:50]} Kc5 {[%emt 0:00:32]} 43. Re1 {[%emt 0:06:11]} Ra2 {[%emt 0:08:39]} 44. Re5+ {[%emt 0:00:09]} Kd6 {[%emt 0:00:01]} 45. Rh5 {[%emt 0:00:37]} Ra3 {[%emt 0:01:05]} 46. Rxh6 {[%emt 0:02:41]} Ke7 {[%emt 0:00:12]} 47. Bc6 {[%emt 0:01:28]} Rxa5 {[%emt 0:01:07]} 48. Rh8 {[%emt 0:01:07]} Ra3 {[%emt 0:02:08]} 49. Ra8 {[%emt 0:00:27]} Kd6 {[%emt 0:02:16]} 50. Bb7 {[%emt 0:00:05]} a5 {[%emt 0:00:02]} 51. Ra6+ {[%emt 0:01:00]} Ke5 {[%emt 0:02:03]} 52. Kf2 {[%emt 0:01:50]} Bd7 {[%emt 0:04:11]} 53. Ke2 {[%emt 0:00:48]} a4 {[%emt 0:00:54]} 54. Kd2 {[%emt 0:00:09]} Ra2+ {[%emt 0:00:22]} 55. Kc1 {[%emt 0:00:15]} Re2 {[%emt 0:01:33]} 56. Ra5+ {[%emt 0:01:23]} Kd6 {[%emt 0:00:49]} 57. Ba6 {[%emt 0:00:51]} Re3 {[%emt 0:03:15]} 58. Kd2 {[%emt 0:00:13]} Rd3+ {[%emt 0:00:17]} 59. Kc2 {[%emt 0:00:09]} Rxg3 {[%emt 0:00:18]} 60. Bb7 {[%emt 0:00:52]} Re3 {[%emt 0:00:59]} 61. Rd5+ {[%emt 0:00:12]} Kc7 {[%emt 0:00:05]} 62. Ba8 {[%emt 0:01:01]} a3 {[%emt 0:04:17]} 63. Rc5+ {[%emt 0:01:04]} 0-1

[Event "57th Biel Festival ATO 2024"]
[Site "Biel"]
[Date "2024.07.23"]
[Round "7.27"]
[White "Kim, Donghan"]
[Black "Van Bogaert, Olivier"]
[Result "1-0"]
[ECO "B13"]
[WhiteElo "1746"]
[BlackElo "1815"]
[Annotator "NA RC"]
[PlyCount "107"]
[EventDate "2024.07.03"]
[EventType "swiss"]
[EventCountry "SUI"]
[SourceTitle "playchess.com"]
[Source "ChessBase"]
[SourceQuality "1"]
[TimeControl "40/5400+30:1800+30"]

1. e4 {[%emt 0:00:06]} c6 {[%emt 0:00:20]} 2. d4 {[%emt 0:00:09]} d5 {[%emt 0:00:10]} 3. exd5 {[%emt 0:00:25]} cxd5 {[%emt 0:00:10]} 4. Bd3 {[%emt 0:00:21]} Nc6 {[%emt 0:00:12]} 5. c3 {[%emt 0:00:17]} Nf6 {[%emt 0:00:11]} 6. Bf4 {[%emt 0:01:40]} Bg4 {[%emt 0:00:21]} 7. Nf3 {[%emt 0:00:51]} e6 {[%emt 0:05:01]} 8. Nbd2 {[%emt 0:02:04]} Bd6 {[%emt 0:00:33]} 9. Bxd6 {[%emt 0:01:38]} Qxd6 {[%emt 0:00:06]} 10. h3 {[%emt 0:01:27]} Bxf3 {[%emt 0:03:48]} 11. Nxf3 {[%emt 0:06:03]} O-O {[%emt 0:00:14]} 12. Qe2 {[%emt 0:05:23]} Qf4 {[%emt 0:15:48]} 13. g3 {[%emt 0:15:25]} Qc7 {[%emt 0:00:36]} 14. O-O {[%emt 0:07:33]} Rac8 {[%emt 0:13:43]} 15. Rfe1 {[%emt 0:01:51]} Rfd8 {[%emt 0:09:30]} 16. Qe3 {[%emt 0:04:03]} Na5 {[%emt 0:04:23]} 17. Ne5 {[%emt 0:05:34]} Nc4 {[%emt 0:01:08]} 18. Bxc4 {[%emt 0:00:48]} dxc4 {[%emt 0:00:21]} 19. f4 {[%emt 0:04:46]} Nd5 {[%emt 0:07:03]} 20. Qe4 {[%emt 0:03:11]} Nf6 {[%emt 0:00:24]} 21. Qe3 {[%emt 0:01:24]} Nd5 {[%emt 0:00:09]} 22. Qe4 {[%emt 0:00:15]} Nf6 {[%emt 0:00:05]} 23. Qf3 {[%emt 0:00:25]} Nd7 {[%emt 0:02:41]} 24. h4 {[%emt 0:05:45]} Nxe5 {[%emt 0:00:27]} 25. Rxe5 {[%emt 0:00:26]} Qc6 {[%emt 0:05:26]} 26. Qg4 {[%emt 0:11:07]} Rd5 {[%emt 0:10:37]} 27. h5 {[%emt 0:04:44]} Rxe5 {[%emt 0:02:34]} 28. h6 {[%emt 0:02:29]} g6 {[%emt 0:01:16]} 29. fxe5 {[%emt 0:01:05]} Rf8 {[%emt 0:04:13]} 30. Qf4 {[%emt 0:02:06]} f5 {[%emt 0:00:43]} 31. exf6 {[%emt 0:00:14]} Qd7 {[%emt 0:05:46]} 32. Rf1 {[%emt 0:01:36]} Kf7 {[%emt 0:04:09]} 33. Qe5 {[%emt 0:01:10]} Rd8 {[%emt 0:01:33]} 34. Rf4 {[%emt 0:08:41]} Qd6 {[%emt 0:00:24]} 35. Qe3 {[%emt 0:01:11]} Qb6 {[%emt 0:01:21]} 36. Qe2 {[%emt 0:01:27]} Rd5 {[%emt 0:00:28]} 37. Qxc4 {[%emt 0:00:33]} Qd6 {[%emt 0:00:23]} 38. Qe2 {[%emt 0:00:40]} Rg5 {[%emt 0:00:10]} 39. Kf2 {[%emt 0:00:28]} Rh5 {[%emt 0:00:52]} 40. Kg2 {[%emt 0:00:35]} Rg5 {[%emt 0:02:29]} 41. Qf3 {[%emt 0:30:33]} Qb6 {[%emt 0:02:46]} 42. b4 {[%emt 0:00:00]} Rh5 {[%emt 0:06:45]} 43. a3 {[%emt 0:00:00]} Rxh6 {[%emt 0:01:04]} 44. d5 {[%emt 0:00:00]} e5 {[%emt 0:02:48]} 45. Rc4 {[%emt 0:00:00]} g5 {[%emt 0:00:29]} 46. Qf5 {[%emt 0:00:00]} Qd6 {[%emt 0:08:26]} 47. Qe4 {[%emt 0:00:00]} Kxf6 {[%emt 0:05:08]} 48. Rc8 {[%emt 0:00:00]} Kg7 {[%emt 0:01:23]} 49. Rc5 {[%emt 0:02:15]} Rf6 {[%emt 0:01:55]} 50. Qe3 {[%emt 0:01:19]} Kg6 {[%emt 0:00:50]} 51. c4 {[%emt 0:00:38]} h5 {[%emt 0:01:21]} 52. Rc8 {[%emt 0:00:34]} Rf5 {[%emt 0:02:03]} 53. Re8 {[%emt 0:00:34]} Qf6 {[%emt 0:00:53]} 54. Re6 {[%emt 0:00:12]} 1-0

[Event "57th Biel Festival ATO 2024"]
[Site "Biel"]
[Date "2024.07.23"]
[Round "7.28"]
[White "Luedi, Paul"]
[Black "Bangerter, Daria"]
[Result "0-1"]
[ECO "D20"]
[WhiteElo "1715"]
[BlackElo "1931"]
[Annotator "RC"]
[PlyCount "54"]
[EventDate "2024.07.03"]
[EventType "swiss"]
[EventCountry "SUI"]
[SourceTitle "playchess.com"]
[Source "ChessBase"]
[SourceQuality "1"]
[TimeControl "40/5400+30:1800+30"]

1. d4 {[%emt 0:00:09]} d5 {[%emt 0:00:06]} 2. c4 {[%emt 0:00:21]} dxc4 {[%emt 0:00:04]} 3. e3 {[%emt 0:00:37]} e5 {[%emt 0:00:19]} 4. Bxc4 {[%emt 0:02:05]} exd4 {[%emt 0:00:06]} 5. Qb3 {[%emt 0:03:01]} Qe7 {[%emt 0:02:55]} 6. Ne2 {[%emt 0:01:59]} dxe3 {[%emt 0:02:15]} 7. Bxe3 {[%emt 0:03:44]} Qb4+ {[%emt 0:05:43]} 8. Nbc3 {[%emt 0:02:22]} Qxb3 {[%emt 0:01:48]} 9. Bxb3 {[%emt 0:00:17]} Nf6 {[%emt 0:04:51]} 10. O-O-O {[%emt 0:01:52]} c6 {[%emt 0:09:15]} 11. h3 {[%emt 0:03:48]} Be7 {[%emt 0:02:00]} 12. Bg5 {[%emt 0:06:33]} O-O {[%emt 0:06:34]} 13. Rhe1 {[%emt 0:02:17]} Nbd7 {[%emt 0:06:44]} 14. Ng3 {[%emt 0:03:36]} Bb4 {[%emt 0:02:32]} 15. Nge4 {[%emt 0:09:39]} Nxe4 {[%emt 0:07:50]} 16. Rxe4 {[%emt 0:00:17]} a5 {[%emt 0:02:30]} 17. Rde1 {[%emt 0:05:36]} Nc5 {[%emt 0:03:28]} 18. Bxf7+ {[%emt 0:16:11]} Rxf7 {[%emt 0:05:39]} 19. Re8+ {[%emt 0:02:30]} Rf8 {[%emt 0:00:08]} 20. Rxf8+ {[%emt 0:03:52]} Kxf8 {[%emt 0:00:07]} 21. Kd2 {[%emt 0:09:47]} Ne6 {[%emt 0:10:55]} 22. Be3 {[%emt 0:01:13]} Bd7 {[%emt 0:00:25]} 23. Kc2 {[%emt 0:01:17]} Bxc3 {[%emt 0:04:47]} 24. Kxc3 {[%emt 0:00:15]} c5 {[%emt 0:01:36]} 25. Kc4 {[%emt 0:02:55]} b6 {[%emt 0:02:57]} 26. Rd1 {[%emt 0:01:38]} Rd8 {[%emt 0:01:04]} 27. Rd6 {[%emt 0:02:15]} Bb5+ {[%emt 0:01:07]} 0-1

[Event "57th Biel Festival ATO 2024"]
[Site "Biel"]
[Date "2024.07.23"]
[Round "7.29"]
[White "Bachmann Daniel"]
[Black "Buntschu, Kurt"]
[Result "1-0"]
[ECO "B22"]
[WhiteElo "1713"]
[BlackElo "1868"]
[Annotator "NA RC"]
[PlyCount "129"]
[EventDate "2024.07.03"]
[EventType "swiss"]
[EventCountry "SUI"]
[SourceTitle "playchess.com"]
[Source "ChessBase"]
[SourceQuality "1"]
[TimeControl "40/5400+30:1800+30"]

1. e4 {[%emt 0:03:48]} c5 {[%emt 0:00:42]} 2. c3 {[%emt 0:00:01]} d5 {[%emt 0:00:06]} 3. exd5 {[%emt 0:00:06]} Qxd5 {[%emt 0:00:04]} 4. d4 {[%emt 0:00:05]} Nf6 {[%emt 0:00:20]} 5. Nf3 {[%emt 0:00:23]} Bg4 {[%emt 0:00:10]} 6. dxc5 {[%emt 0:01:19]} Qxd1+ {[%emt 0:04:31]} 7. Kxd1 {[%emt 0:00:02]} e6 {[%emt 0:03:02]} 8. b4 {[%emt 0:00:30]} g6 {[%emt 0:07:24]} 9. Nbd2 {[%emt 0:09:43]} Bg7 {[%emt 0:04:58]} 10. Bb2 {[%emt 0:03:48]} O-O {[%emt 0:04:29]} 11. Kc2 {[%emt 0:15:44]} Bxf3 {[%emt 0:13:52]} 12. gxf3 {[%emt 0:01:22]} Nc6 {[%emt 0:06:36]} 13. Nc4 {[%emt 0:09:17]} Rfd8 {[%emt 0:04:03]} 14. b5 {[%emt 0:05:06]} Ne7 {[%emt 0:00:09]} 15. Nd6 {[%emt 0:00:36]} Rab8 {[%emt 0:01:51]} 16. c4 {[%emt 0:00:17]} Nc8 {[%emt 0:03:44]} 17. Rd1 {[%emt 0:02:20]} Nxd6 {[%emt 0:03:05]} 18. cxd6 {[%emt 0:04:54]} b6 {[%emt 0:04:08]} 19. Rd3 {[%emt 0:10:01]} Rbc8 {[%emt 0:02:29]} 20. Kb3 {[%emt 0:02:19]} Nd7 {[%emt 0:06:44]} 21. Ba3 {[%emt 0:01:12]} Nc5+ {[%emt 0:02:04]} 22. Bxc5 {[%emt 0:00:07]} Rxc5 {[%emt 0:00:07]} 23. Bg2 {[%emt 0:00:46]} Be5 {[%emt 0:02:51]} 24. d7 {[%emt 0:05:00]} Kf8 {[%emt 0:02:40]} 25. h3 {[%emt 0:00:30]} Ke7 {[%emt 0:00:55]} 26. Rhd1 {[%emt 0:00:03]} Bc7 {[%emt 0:02:05]} 27. a4 {[%emt 0:02:51]} Rg5 {[%emt 0:02:20]} 28. Bh1 {[%emt 0:00:31]} Re5 {[%emt 0:01:26]} 29. f4 {[%emt 0:00:55]} Rc5 {[%emt 0:00:24]} 30. Kb4 {[%emt 0:00:29]} Bxf4 {[%emt 0:01:22]} 31. a5 {[%emt 0:00:17]} Bc7 {[%emt 0:00:17]} 32. axb6 {[%emt 0:00:14]} Bxb6 {[%emt 0:00:20]} 33. Bc6 {[%emt 0:00:30]} Rf5 {[%emt 0:00:49]} 34. R1d2 {[%emt 0:01:24]} Bxf2 {[%emt 0:03:16]} 35. Ra2 {[%emt 0:00:51]} Bb6 {[%emt 0:00:49]} 36. Rc3 {[%emt 0:00:58]} Rf4 {[%emt 0:05:33]} 37. Rca3 {[%emt 0:01:23]} Kd6 {[%emt 0:06:13]} 38. Rxa7 {[%emt 0:01:33]} Bc5+ {[%emt 0:00:04]} 39. Kb3 {[%emt 0:00:38]} Bxa7 {[%emt 0:01:45]} 40. Rxa7 {[%emt 0:00:02]} Rf1 {[%emt 0:02:01]} 41. Kb4 {[%emt 0:33:12]} Rb1+ {[%emt 0:11:05]} 42. Kc3 {[%emt 0:00:00]} Kc5 {[%emt 0:08:02]} 43. Kc2 {[%emt 0:00:00]} Rb4 {[%emt 0:04:01]} 44. Rc7 {[%emt 0:00:00]} Kd6 {[%emt 0:05:52]} 45. Rc8 {[%emt 0:00:00]} Ke7 {[%emt 0:00:03]} 46. Kc3 {[%emt 0:00:00]} Rb1 {[%emt 0:00:27]} 47. c5 {[%emt 0:00:00]} Rc1+ {[%emt 0:03:01]} 48. Kb4 {[%emt 0:00:00]} Rxd7 {[%emt 0:01:18]} 49. Bxd7 {[%emt 0:00:00]} Kxd7 {[%emt 0:00:03]} 50. Rc6 {[%emt 0:00:00]} Rb1+ {[%emt 0:00:18]} 51. Ka5 {[%emt 0:00:00]} e5 {[%emt 0:00:38]} 52. Rd6+ {[%emt 0:00:00]} Kc8 {[%emt 0:00:59]} 53. Rf6 {[%emt 0:00:00]} e4 {[%emt 0:00:10]} 54. Rxf7 {[%emt 0:00:00]} e3 {[%emt 0:00:03]} 55. Re7 {[%emt 0:00:00]} Rb3 {[%emt 0:00:03]} 56. Kb6 {[%emt 0:00:00]} Kd8 {[%emt 0:01:22]} 57. Re4 {[%emt 0:00:00]} g5 {[%emt 0:00:57]} 58. c6 {[%emt 0:00:00]} e2 {[%emt 0:00:34]} 59. Rxe2 {[%emt 0:00:00]} Rc3 {[%emt 0:00:37]} 60. Kb7 {[%emt 0:00:00]} h5 {[%emt 0:00:29]} 61. b6 {[%emt 0:00:00]} g4 {[%emt 0:00:16]} 62. c7+ {[%emt 0:00:00]} Kd7 {[%emt 0:00:11]} 63. c8=Q+ {[%emt 0:00:00]} Rxc8 {[%emt 0:00:10]} 64. Rd2+ {[%emt 0:00:00]} Ke7 {[%emt 0:00:19]} 65. Kxc8 {[%emt 0:00:00]} 1-0

[Event "57th Biel Festival ATO 2024"]
[Site "Biel"]
[Date "2024.07.23"]
[Round "7.30"]
[White "Trubini, Timon"]
[Black "Hofer, Friedrich"]
[Result "1-0"]
[ECO "C54"]
[WhiteElo "1714"]
[BlackElo "1798"]
[Annotator "NA RC"]
[PlyCount "69"]
[EventDate "2024.07.03"]
[EventType "swiss"]
[EventCountry "SUI"]
[SourceTitle "playchess.com"]
[Source "ChessBase"]
[SourceQuality "1"]
[TimeControl "40/5400+30:1800+30"]

1. e4 {[%emt 0:00:07]} e5 {[%emt 0:00:21]} 2. Nf3 {[%emt 0:00:02]} Nc6 {[%emt 0:00:13]} 3. Bc4 {[%emt 0:00:03]} Bc5 {[%emt 0:01:07]} 4. c3 {[%emt 0:00:13]} Nf6 {[%emt 0:00:12]} 5. d3 {[%emt 0:00:07]} d6 {[%emt 0:00:24]} 6. Bb3 {[%emt 0:00:03]} a6 {[%emt 0:00:55]} 7. O-O {[%emt 0:00:08]} h6 {[%emt 0:01:02]} 8. Nbd2 {[%emt 0:00:32]} O-O {[%emt 0:01:13]} 9. h3 {[%emt 0:00:05]} Re8 {[%emt 0:00:27]} 10. Re1 {[%emt 0:00:07]} Ba7 {[%emt 0:01:12]} 11. Nf1 {[%emt 0:00:08]} Be6 {[%emt 0:02:17]} 12. Bc2 {[%emt 0:00:54]} Ne7 {[%emt 0:03:43]} 13. Ng3 {[%emt 0:00:34]} Ng6 {[%emt 0:00:26]} 14. d4 {[%emt 0:01:32]} c6 {[%emt 0:03:48]} 15. a4 {[%emt 0:02:01]} Qc7 {[%emt 0:00:51]} 16. Kf1 {[%emt 0:05:44]} Rad8 {[%emt 0:09:47]} 17. b4 {[%emt 0:06:50]} b5 {[%emt 0:03:16]} 18. axb5 {[%emt 0:01:26]} axb5 {[%emt 0:01:28]} 19. Be3 {[%emt 0:01:04]} Bc4+ {[%emt 0:01:28]} 20. Kg1 {[%emt 0:00:42]} d5 {[%emt 0:01:50]} 21. Rxa7 {[%emt 0:02:16]} Qxa7 {[%emt 0:00:21]} 22. dxe5 {[%emt 0:00:06]} Qc7 {[%emt 0:01:06]} 23. exf6 {[%emt 0:00:26]} dxe4 {[%emt 0:00:12]} 24. Nd2 {[%emt 0:01:13]} Bd3 {[%emt 0:03:23]} 25. fxg7 {[%emt 0:01:34]} Kxg7 {[%emt 0:02:04]} 26. Nf5+ {[%emt 0:01:27]} Kh7 {[%emt 0:00:16]} 27. Qh5 {[%emt 0:02:28]} Qe5 {[%emt 0:02:38]} 28. Bd4 {[%emt 0:00:59]} Rxd4 {[%emt 0:00:22]} 29. Qxh6+ {[%emt 0:00:10]} Kg8 {[%emt 0:00:12]} 30. Nxd4 {[%emt 0:00:06]} Bxc2 {[%emt 0:00:43]} 31. Nxc2 {[%emt 0:00:12]} Qxc3 {[%emt 0:00:37]} 32. Nxe4 {[%emt 0:01:25]} Re6 {[%emt 0:02:35]} 33. Qd2 {[%emt 0:01:44]} Qg7 {[%emt 0:04:40]} 34. Qd8+ {[%emt 0:01:26]} Kh7 {[%emt 0:00:15]} 35. Ng5+ {[%emt 0:00:28]} 1-0

[Event "57th Biel Festival ATO 2024"]
[Site "Biel"]
[Date "2024.07.23"]
[Round "7.31"]
[White "Juchler, Celine"]
[Black "Cardoso Rodrigues, Michael"]
[Result "0-1"]
[ECO "C42"]
[WhiteElo "1664"]
[BlackElo "1796"]
[Annotator "NA"]
[PlyCount "108"]
[EventDate "2024.07.03"]
[EventType "swiss"]
[EventCountry "SUI"]
[SourceTitle "playchess.com"]
[Source "ChessBase"]
[SourceQuality "1"]
[TimeControl "40/5400+30:1800+30"]

1. e4 {[%emt 0:00:04]} e5 {[%emt 0:00:05]} 2. Nf3 {[%emt 0:00:05]} Nf6 {[%emt 0:00:08]} 3. Nxe5 {[%emt 0:01:06]} d6 {[%emt 0:00:09]} 4. Nf3 {[%emt 0:00:18]} Nxe4 {[%emt 0:00:07]} 5. d4 {[%emt 0:00:21]} d5 {[%emt 0:00:07]} 6. Bd3 {[%emt 0:01:11]} Nc6 {[%emt 0:00:07]} 7. O-O {[%emt 0:00:50]} Be7 {[%emt 0:00:06]} 8. Re1 {[%emt 0:00:48]} Bg4 {[%emt 0:00:37]} 9. Bxe4 {[%emt 0:01:05]} dxe4 {[%emt 0:00:24]} 10. Rxe4 {[%emt 0:01:44]} Bxf3 {[%emt 0:01:22]} 11. Qxf3 {[%emt 0:01:39]} Nxd4 {[%emt 0:00:09]} 12. Qd3 {[%emt 0:02:29]} Ne6 {[%emt 0:01:53]} 13. Qxd8+ {[%emt 0:05:28]} Rxd8 {[%emt 0:00:03]} 14. Nc3 {[%emt 0:00:13]} Bf6 {[%emt 0:05:58]} 15. Be3 {[%emt 0:02:03]} Bxc3 {[%emt 0:12:55]} 16. bxc3 {[%emt 0:00:35]} b6 {[%emt 0:00:05]} 17. f4 {[%emt 0:02:55]} O-O {[%emt 0:00:38]} 18. f5 {[%emt 0:00:52]} Nc5 {[%emt 0:00:02]} 19. Bxc5 {[%emt 0:00:34]} bxc5 {[%emt 0:00:02]} 20. Re5 {[%emt 0:04:18]} Rd2 {[%emt 0:03:40]} 21. Rc1 {[%emt 0:02:01]} Rb8 {[%emt 0:02:29]} 22. Rxc5 {[%emt 0:00:51]} Rb7 {[%emt 0:04:31]} 23. Rc4 {[%emt 0:01:32]} Kf8 {[%emt 0:01:35]} 24. Rb4 {[%emt 0:08:07]} Rb6 {[%emt 0:00:49]} 25. Rd4 {[%emt 0:10:33]} Rxd4 {[%emt 0:02:20]} 26. cxd4 {[%emt 0:00:10]} Rb2 {[%emt 0:00:17]} 27. Kf2 {[%emt 0:01:44]} Rxa2 {[%emt 0:00:23]} 28. Ke3 {[%emt 0:00:55]} Ke7 {[%emt 0:00:45]} 29. h4 {[%emt 0:02:12]} h5 {[%emt 0:01:12]} 30. Kd3 {[%emt 0:03:33]} Kf6 {[%emt 0:03:17]} 31. Re1 {[%emt 0:00:45]} Ra3+ {[%emt 0:08:09]} 32. c3 {[%emt 0:02:41]} Ra2 {[%emt 0:00:42]} 33. Re5 {[%emt 0:08:06]} Rxg2 {[%emt 0:01:45]} 34. Rc5 {[%emt 0:00:09]} Rg4 {[%emt 0:25:31]} 35. Rxc7 {[%emt 0:06:53]} Rxh4 {[%emt 0:03:06]} 36. d5 {[%emt 0:00:47]} Ra4 {[%emt 0:02:10]} 37. Kc2 {[%emt 0:05:18]} h4 {[%emt 0:03:38]} 38. d6 {[%emt 0:00:24]} Ra6 {[%emt 0:01:28]} 39. d7 {[%emt 0:04:49]} Ke7 {[%emt 0:00:27]} 40. c4 {[%emt 0:01:42]} Kd8 {[%emt 0:01:31]} 41. Rb7 {[%emt 0:30:49]} h3 {[%emt 0:30:57]} 42. Rb1 {[%emt 0:11:14]} h2 {[%emt 0:00:22]} 43. Rh1 {[%emt 0:00:31]} Rh6 {[%emt 0:00:44]} 44. Kb3 {[%emt 0:01:01]} Kxd7 {[%emt 0:00:17]} 45. Kb4 {[%emt 0:00:48]} g5 {[%emt 0:00:33]} 46. fxg6 {[%emt 0:00:24]} fxg6 {[%emt 0:00:09]} 47. Kb5 {[%emt 0:01:32]} g5 {[%emt 0:00:23]} 48. c5 {[%emt 0:00:34]} g4 {[%emt 0:00:16]} 49. c6+ {[%emt 0:00:29]} Kc7 {[%emt 0:00:26]} 50. Ka6 {[%emt 0:01:05]} Rxc6+ {[%emt 0:00:40]} 51. Kxa7 {[%emt 0:00:16]} g3 {[%emt 0:00:23]} 52. Rf1 {[%emt 0:01:18]} g2 {[%emt 0:00:32]} 53. Rf7+ {[%emt 0:00:14]} Kd8 {[%emt 0:00:36]} 54. Rf8+ {[%emt 0:02:53]} Ke7 {[%emt 0:00:11]} 0-1